bitfinex/quotes_SOLUSD_20250915
["timestamp","ask_amount","ask_price","bid_price","bid_amount"]
[1757963075825,48.8,234.13,234.12,3.12482864]
[1757963077249,48.8,234.13,234.12,0.71]
[1757963078750,4.27077347,234.15,234.12,0.71]
[1757963079727,4.30040184,234.17,234.12,0.71]
[1757963080546,6.3178779,234.17,234.1,1.60747606]
[1757963080849,6.3178779,234.17,234.11,0.71]
[1757963081042,5.8478779,234.17,234.11,0.71]
[1757963082326,5.8478779,234.17,234.14,1.54747606]
[1757963082327,48.8,234.16,234.14,1.54747606]
[1757963082525,48.8,234.16,234.15,2.25747606]
[1757963083631,48.8,234.16,234.15,0.71]
[1757963085047,48.8,234.16,234.14,1.54747606]
[1757963085247,48.8,234.16,234.14,2.25747606]
[1757963086252,48.8,234.16,234.12,35.99747606]
[1757963086457,53.07059345,234.16,234.13,0.71]
[1757963086760,53.07059345,234.16,234.12,33.7]
[1757963087057,53.07059345,234.16,234.13,0.71]
[1757963087356,53.07059345,234.16,234.12,33.7]
[1757963087534,48.8,234.15,234.12,34.41]
[1757963087726,3.09495212,234.13,234.1,0.06]
[1757963087931,1.54747606,234.11,234.1,0.06]
[1757963088347,6.28897236,234.11,234.1,0.06]
[1757963088543,0.03,234.17,234.13,26.0]
[1757963088758,0.03,234.17,234.16,41.14307007]
[1757963088955,0.03,234.17,234.16,39.59559401]
[1757963089254,5.102e-05,234.17,234.16,51.77558738]
[1757963089556,5.102e-05,234.17,234.16,52.48558738]
[1757963090061,5.102e-05,234.17,234.16,4.70746943]
[1757963090246,5.102e-05,234.17,234.16,39.70746943]
[1757963090635,5.102e-05,234.17,234.16,40.41746943]
[1757963091552,5.102e-05,234.17,234.16,4.70746943]
[1757963091756,5.102e-05,234.17,234.16,39.66746943]
[1757963092535,5.102e-05,234.17,234.16,3.15999337]
[1757963092962,5.102e-05,234.17,234.16,4.70746943]
[1757963094748,4.27045286,234.17,234.16,4.70746943]
[1757963094946,4.74045286,234.17,234.16,3.15999337]
[1757963096240,4.74045286,234.17,234.13,1.54747606]
[1757963096441,4.27045286,234.17,234.14,3.16149783]
[1757963096642,5.102e-05,234.17,234.15,4.70897389]
[1757963096848,5.102e-05,234.17,234.16,3.16149783]
[1757963099358,5.102e-05,234.17,234.16,0.69]
[1757963099564,5.102e-05,234.17,234.16,49.12559401]
[1757963100168,5.102e-05,234.17,234.16,52.285414]
[1757963101268,5.102e-05,234.17,234.16,56.55599821]
[1757963103659,5.102e-05,234.17,234.16,42.9604042]
[1757963104061,5.102e-05,234.17,234.16,56.55599821]
[1757963105563,5.102e-05,234.17,234.16,17.445414]
[1757963106361,5.102e-05,234.17,234.16,65.44729605]
[1757963106873,5.102e-05,234.17,234.16,30.70729605]
[1757963107055,5.102e-05,234.17,234.16,65.42729605]
[1757963107257,5.102e-05,234.17,234.16,62.26747606]
[1757963107452,5.102e-05,234.17,234.16,26.0]
[1757963107669,5.102e-05,234.17,234.16,39.42800567]
[1757963108174,5.102e-05,234.17,234.16,57.97418389]
[1757963108353,5.102e-05,234.17,234.16,54.81365428]
[1757963108752,5.102e-05,234.17,234.16,50.54307007]
[1757963109251,5.102e-05,234.17,234.16,54.95581585]
[1757963109456,0.03,234.2,234.19,44.00779272]
[1757963109662,0.03,234.22,234.2,13.73775558]
[1757963109856,0.03,234.22,234.21,36.28747606]
[1757963110055,0.03,234.22,234.21,36.96747606]
[1757963111774,0.03,234.22,234.21,41.23714857]
[1757963111968,0.03,234.22,234.21,6.49714857]
[1757963112173,0.03,234.22,234.21,41.19714857]
[1757963112789,4.36828794,234.29,234.22,13.59559401]
[1757963112961,4.36828794,234.29,234.28,1.54747606]
[1757963113359,0.1,234.29,234.28,1.54747606]
[1757963114377,0.1,234.29,234.28,2.22747606]
[1757963115860,10.66673272,234.38,234.28,20.09146686]
[1757963116175,4.73657564,234.38,234.37,1.54747606]
[1757963116969,15.40301475,234.38,234.36,1.54747606]
[1757963117474,0.47,234.37,234.35,1.54747606]
[1757963117671,14.93301475,234.38,234.35,1.54747606]
[1757963117874,0.47,234.36,234.34,1.54747606]
[1757963118383,15.40301475,234.38,234.34,1.54747606]
[1757963118561,0.47,234.37,234.34,1.54747606]
[1757963119364,4.26693975,234.36,234.33,34.64]
[1757963119684,4.26693975,234.36,234.34,1.54747606]
[1757963119867,4.26693975,234.36,234.3,0.68]
[1757963120074,4.26693975,234.36,234.33,1.54747606]
[1757963120469,4.26675769,234.37,234.33,1.54747606]
[1757963120667,4.73675769,234.37,234.33,1.54747606]
[1757963121167,4.26675769,234.37,234.33,1.54747606]
[1757963121883,4.26675769,234.37,234.31,35.24]
[1757963122061,4.26675769,234.37,234.33,1.54747606]
[1757963122983,14.933246,234.38,234.33,1.54747606]
[1757963123176,48.8,234.37,234.33,1.54747606]
[1757963123978,49.27,234.37,234.32,36.04747606]
[1757963124386,49.27,234.37,234.33,1.54747606]
[1757963124576,53.06679485,234.37,234.33,1.54747606]
[1757963125889,52.96439158,234.37,234.33,1.54747606]
[1757963126482,0.47,234.36,234.33,1.54747606]
[1757963126783,0.47,234.36,234.32,36.04747606]
[1757963127788,4.26712182,234.35,234.28,13.59559401]
[1757963128088,50.71507279,234.34,234.28,34.44]
[1757963128283,49.16759673,234.33,234.27,27.54747606]
[1757963128472,49.16759673,234.33,234.28,2.22747606]
[1757963128473,48.69759673,234.33,234.28,2.22747606]
[1757963128673,0.47,234.32,234.28,1.54747606]
[1757963128881,0.47,234.32,234.27,34.42]
[1757963129190,50.71507279,234.31,234.25,35.94747606]
[1757963129390,48.69759673,234.3,234.25,34.4]
[1757963129693,48.69759673,234.3,234.26,0.68]
[1757963129887,4.2682146,234.29,234.26,0.68]
[1757963130406,52.96567824,234.3,234.27,0.68]
[1757963130572,52.96567824,234.3,234.28,0.68]
[1757963130766,48.69759673,234.3,234.29,0.68]
[1757963131290,52.96562916,234.3,234.27,1.54747606]
[1757963131465,52.96562916,234.3,234.26,1.54747606]
[1757963131894,52.96562916,234.3,234.26,2.23747606]
[1757963132489,52.96562916,234.3,234.26,0.69]
[1757963132669,48.69759673,234.29,234.28,0.06]
[1757963133769,52.96581133,234.29,234.28,0.06]
[1757963135866,48.69759673,234.29,234.28,0.06]
[1757963136074,48.69759673,234.29,234.28,2.29747606]
[1757963136793,48.69759673,234.29,234.28,36.61747606]
[1757963136992,4.2672549,234.35,234.28,40.88587285]
[1757963137193,48.69759673,234.34,234.31,1.54747606]
[1757963137368,48.69759673,234.34,234.31,2.23747606]
[1757963138289,52.9649984,234.34,234.31,2.23747606]
[1757963140166,52.9649984,234.34,234.31,1.54747606]
[1757963140371,48.69759673,234.34,234.33,1.54747606]
[1757963140581,48.69759673,234.34,234.33,2.23747606]
[1757963141891,48.69759673,234.34,234.33,3.10361259]
[1757963142590,48.95379673,234.34,234.33,3.10361259]
[1757963143368,48.95379673,234.34,234.33,2.41361259]
[1757963143575,53.22110064,234.34,234.33,2.41361259]
[1757963143792,53.22110064,234.34,234.31,2.41361259]
[1757963143995,48.69759673,234.33,234.32,0.69]
[1757963146474,52.96508275,234.33,234.28,0.06]
[1757963146679,48.69759673,234.32,234.29,34.89]
[1757963146895,48.69759673,234.32,234.31,26.0]
[1757963147082,48.69759673,234.32,234.31,26.69]
[1757963147897,48.69759673,234.32,234.31,42.6992066]
[1757963148400,0.03,234.38,234.36,13.59559401]
[1757963148581,0.03,234.38,234.37,50.33136817]
[1757963148778,0.03,234.38,234.37,16.84136817]
[1757963148979,0.03,234.38,234.37,14.28559401]
[1757963149194,0.03,234.38,234.37,0.69]
[1757963149394,0.03,234.38,234.37,51.10136817]
[1757963149787,0.03,234.38,234.37,51.12136817]
[1757963150588,0.03,234.38,234.37,55.38812586]
[1757963150898,0.03,234.38,234.37,57.80173845]
[1757963152107,0.03,234.38,234.37,57.78173845]
[1757963152285,0.1,234.39,234.38,13.59559401]
[1757963152479,0.1,234.39,234.38,14.28559401]
[1757963153603,0.1,234.39,234.38,18.69433122]
[1757963153997,0.1,234.44,234.43,2.41361259]
[1757963154311,0.1,234.44,234.43,36.63361259]
[1757963154807,0.1,234.44,234.43,16.0092066]
[1757963155105,0.1,234.44,234.43,50.2092066]
[1757963155284,0.1,234.44,234.43,13.59559401]
[1757963155485,0.1,234.44,234.43,50.2092066]
[1757963156018,0.1,234.44,234.43,54.47487225]
[1757963156306,0.1,234.44,234.43,55.14487225]
[1757963156501,0.1,234.44,234.43,55.28703382]
[1757963156907,0.1,234.49,234.48,16.0092066]
[1757963157111,0.1,234.49,234.48,50.2492066]
[1757963158011,0.1,234.49,234.48,55.32612422]
[1757963159188,0.1,234.49,234.48,48.64775558]
[1757963159415,0.1,234.49,234.48,48.60775558]
[1757963159601,0.1,234.49,234.48,51.02136817]
[1757963160015,0.1,234.49,234.48,55.28612422]
[1757963160190,0.1,234.49,234.48,50.35136817]
[1757963160390,0.1,234.49,234.48,55.28612422]
[1757963160592,0.1,234.49,234.48,21.08612422]
[1757963160792,0.1,234.49,234.48,51.02136817]
[1757963161091,0.1,234.49,234.48,55.28612422]
[1757963162711,0.68,234.55,234.52,39.59559401]
[1757963162918,0.68,234.55,234.54,2.41361259]
[1757963164418,0.78,234.59,234.54,2.41361259]
[1757963164596,0.1,234.59,234.58,2.41361259]
[1757963164799,0.78,234.59,234.58,39.59559401]
[1757963164995,0.78,234.59,234.58,76.1492066]
[1757963165195,0.1,234.59,234.58,76.1492066]
[1757963165610,0.1,234.59,234.58,77.01136817]
[1757963166114,0.1,234.69,234.66,26.0]
[1757963166306,0.1,234.69,234.68,2.41361259]
[1757963166501,0.1,234.69,234.66,26.0]
[1757963166706,0.78,234.69,234.68,2.41361259]
[1757963166909,4.36093996,234.69,234.68,36.57361259]
[1757963167509,5.04093996,234.69,234.68,36.57361259]
[1757963167922,5.04093996,234.69,234.68,2.41361259]
[1757963168111,5.04093996,234.69,234.68,36.57361259]
[1757963168417,5.04093996,234.69,234.59,10.65689074]
[1757963168418,7.45455255,234.69,234.61,34.14]
[1757963168623,0.68,234.68,234.62,34.14]
[1757963168820,0.68,234.68,234.66,2.41361259]
[1757963168999,0.68,234.67,234.64,2.41361259]
[1757963169196,0.68,234.66,234.65,34.16]
[1757963169614,4.36093996,234.69,234.65,34.16]
[1757963169811,0.68,234.66,234.63,2.41361259]
[1757963170010,0.1,234.69,234.68,13.59559401]
[1757963170217,0.1,234.69,234.68,36.75361259]
[1757963170610,0.1,234.69,234.68,36.73361259]
[1757963171301,15.69328986,234.69,234.61,34.34]
[1757963171631,0.68,234.68,234.65,2.41361259]
[1757963171805,15.01328986,234.69,234.67,5.74639482]
[1757963172118,4.36093996,234.69,234.67,5.74639482]
[1757963172320,0.68,234.68,234.67,5.74639482]
[1757963172638,0.1,234.69,234.67,40.14639482]
[1757963174024,0.1,234.69,234.68,13.59559401]
[1757963174328,0.1,234.69,234.68,53.72198883]
[1757963174508,0.1,234.69,234.68,54.50198883]
[1757963174827,0.1,234.69,234.68,54.6441504]
[1757963175006,0.1,234.69,234.68,54.6241504]
[1757963175816,0.1,234.69,234.68,48.05559401]
[1757963176022,0.1,234.69,234.68,53.80198883]
[1757963176830,0.1,234.69,234.68,40.20639482]
[1757963177136,0.1,234.69,234.68,58.78311035]
[1757963177323,0.1,234.69,234.68,54.52198883]
[1757963177516,0.1,234.69,234.68,58.78311035]
[1757963177909,0.1,234.69,234.68,24.46527192]
[1757963178133,0.1,234.69,234.68,58.92527192]
[1757963178443,0.1,234.69,234.68,24.46527192]
[1757963178620,0.1,234.69,234.68,58.92527192]
[1757963179810,0.1,234.79,234.73,13.59559401]
[1757963180004,0.1,234.79,234.71,26.0]
[1757963180005,0.68,234.78,234.77,5.74639482]
[1757963180228,0.68,234.78,234.77,40.18639482]
[1757963181642,4.93930658,234.78,234.77,5.74639482]
[1757963181812,3.93930658,234.78,234.77,34.42]
[1757963182420,3.93930658,234.78,234.65,0.72]
[1757963182718,3.93930658,234.78,234.73,5.74639482]
[1757963182920,3.93930658,234.78,234.74,10.58]
[1757963183538,0.1,234.79,234.77,5.74639482]
[1757963183918,0.68,234.78,234.77,5.74639482]
[1757963184843,0.1,234.79,234.74,14.83996811]
[1757963185058,5.03912842,234.79,234.77,5.74639482]
[1757963185418,0.68,234.78,234.77,34.42]
[1757963185643,0.68,234.78,234.77,40.16639482]
[1757963185947,0.68,234.78,234.77,5.74639482]
[1757963186720,0.68,234.78,234.76,34.42]
[1757963186929,0.68,234.78,234.77,5.74639482]
[1757963187742,0.68,234.78,234.75,5.74639482]
[1757963187743,4.93930658,234.78,234.75,5.74639482]
[1757963187950,0.68,234.77,234.75,5.74639482]
[1757963188365,0.68,234.76,234.75,5.74639482]
[1757963188528,0.68,234.76,234.67,0.72]
[1757963188529,0.68,234.76,234.73,5.74639482]
[1757963188850,0.68,234.75,234.73,5.74639482]
[1757963189033,0.68,234.74,234.73,5.74639482]
[1757963189637,4.94003237,234.74,234.73,5.74639482]
[1757963190141,4.94003237,234.74,234.72,5.74639482]
[1757963190332,0.68,234.74,234.72,5.74639482]
[1757963190648,0.68,234.77,234.72,5.74639482]
[1757963190946,0.68,234.76,234.7,34.38]
[1757963191154,0.68,234.76,234.72,5.74639482]
[1757963191325,11.32826646,234.78,234.72,5.74639482]
[1757963191532,0.68,234.78,234.76,5.74639482]
[1757963191726,0.1,234.79,234.76,5.74639482]
[1757963191935,0.1,234.79,234.78,5.74639482]
[1757963192133,0.69,234.78,234.74,5.74639482]
[1757963192369,4.35912517,234.79,234.71,40.10639482]
[1757963192370,0.69,234.77,234.71,40.10639482]
[1757963192655,48.39,234.76,234.7,5.74639482]
[1757963192826,48.39,234.76,234.66,0.68]
[1757963192827,0.69,234.75,234.69,5.74639482]
[1757963193145,0.69,234.74,234.69,5.74639482]
[1757963193328,0.69,234.73,234.66,0.68]
[1757963193527,0.69,234.73,234.63,4.26196278]
[1757963193528,4.26057688,234.71,234.67,34.38]
[1757963193928,47.7,234.72,234.69,5.74639482]
[1757963194749,51.96054343,234.72,234.7,5.74639482]
[1757963195451,47.7,234.72,234.7,6.42639482]
[1757963195653,0.69,234.77,234.71,0.68]
[1757963195960,0.69,234.77,234.74,5.74639482]
[1757963196449,4.25930658,234.78,234.74,5.74639482]
[1757963196629,0.69,234.76,234.74,5.74639482]
[1757963197327,4.25966984,234.76,234.74,5.74639482]
[1757963197527,0.69,234.75,234.74,5.74639482]
[1757963197755,0.69,234.75,234.71,34.36]
[1757963197967,4.25966984,234.76,234.69,40.10639482]
[1757963198161,0.69,234.74,234.69,40.10639482]
[1757963198855,4.25950393,234.77,234.73,5.74639482]
[1757963199054,4.25950393,234.77,234.75,5.74639482]
[1757963199243,52.05921165,234.79,234.75,5.74639482]
[1757963199445,47.8,234.79,234.77,5.74639482]
[1757963200360,0.1,234.79,234.77,5.74639482]
[1757963200536,0.1,234.79,234.77,0.68]
[1757963200737,0.1,234.79,234.78,5.74639482]
[1757963201151,0.1,234.79,234.78,10.6857014]
[1757963201351,0.1,234.89,234.88,5.74639482]
[1757963201552,0.1,234.89,234.79,39.59559401]
[1757963201553,0.1,234.89,234.8,13.59559401]
[1757963201742,0.1,234.89,234.88,5.74639482]
[1757963201941,0.1,234.89,234.88,40.28639482]
[1757963202152,0.1,234.89,234.88,6.42639482]
[1757963202350,0.1,234.89,234.88,40.96639482]
[1757963202857,0.1,234.89,234.88,48.81559401]
[1757963203155,0.1,234.89,234.88,40.30639482]
[1757963203548,0.1,234.89,234.88,6.42639482]
[1757963203746,0.1,234.89,234.88,39.18081178]
[1757963203938,0.1,234.89,234.88,38.50081178]
[1757963204138,0.1,234.89,234.88,34.56]
[1757963204341,0.1,234.89,234.88,35.24]
[1757963204643,0.1,234.89,234.88,60.97471075]
[1757963204854,0.1,234.99,234.97,3.94081178]
[1757963205052,0.1,234.99,234.89,13.59559401]
[1757963205053,4.35554131,234.99,234.98,34.54]
[1757963205255,4.35554131,234.99,234.97,34.6]
[1757963205660,0.69,234.98,234.96,3.94081178]
[1757963205855,0.69,234.97,234.93,3.94081178]
[1757963206052,0.69,234.97,234.95,3.94081178]
[1757963206859,0.69,234.97,234.96,34.6]
[1757963207346,4.25604358,234.96,234.94,3.94081178]
[1757963207540,4.25604358,234.96,234.95,34.58]
[1757963207541,4.94604358,234.96,234.95,34.58]
[1757963208345,4.94604358,234.96,234.94,3.94081178]
[1757963208553,0.69,234.95,234.88,0.68]
[1757963208758,47.7,234.94,234.89,34.58]
[1757963208959,0.69,234.93,234.89,34.58]
[1757963209161,0.69,234.92,234.9,34.58]
[1757963209358,4.94568133,234.98,234.91,3.94081178]
[1757963209541,4.94568133,234.98,234.95,3.94081178]
[1757963209745,0.69,234.97,234.95,3.94081178]
[1757963210574,4.25604358,234.96,234.95,3.94081178]
[1757963210766,4.35559787,234.99,234.95,3.94081178]
[1757963210950,4.35559787,234.99,234.96,3.94081178]
[1757963211143,5.04559787,234.99,234.96,3.94081178]
[1757963211346,0.1,234.99,234.97,3.94081178]
[1757963211574,0.1,234.99,234.98,38.52081178]
[1757963211951,0.1,234.99,234.98,34.58]
[1757963212161,0.1,234.99,234.98,38.52081178]
[1757963213652,0.1,234.99,234.98,39.20081178]
[1757963213958,0.1,234.99,234.98,4.62081178]
[1757963214263,0.1,234.99,234.98,39.16081178]
[1757963214467,0.1,234.99,234.98,4.62081178]
[1757963214663,0.1,234.99,234.98,39.16081178]
[1757963215347,0.1,234.99,234.98,38.46081178]
[1757963215967,0.1,234.99,234.95,0.68]
[1757963216144,0.1,234.99,234.98,3.94081178]
[1757963216344,0.1,234.99,234.98,38.46081178]
[1757963216551,0.1,234.99,234.98,34.52]
[1757963216865,5.04550023,234.99,234.98,34.52]
[1757963217067,0.1,234.99,234.98,38.46081178]
[1757963217981,4.35550023,234.99,234.98,34.52]
[1757963218276,4.35550023,234.99,234.98,3.94081178]
[1757963218761,5.04550023,234.99,234.96,3.94081178]
[1757963218950,4.35550023,234.99,234.98,34.5]
[1757963219568,5.04550023,234.99,234.98,34.5]
[1757963220449,5.04550023,234.99,234.83,4.25839969]
[1757963220450,19.62506259,234.99,234.83,4.25839969]
[1757963220667,0.69,234.98,234.92,3.94081178]
[1757963220971,0.69,234.98,234.94,3.94081178]
[1757963221270,3.94081178,234.95,234.88,0.68]
[1757963221647,3.94081178,234.9,234.88,0.68]
[1757963221848,3.94081178,234.89,234.88,0.68]
[1757963222253,3.94081178,234.89,234.8,18.48]
[1757963222455,3.94081178,234.87,234.8,18.48]
[1757963222675,3.94081178,234.87,234.76,0.06]
[1757963222854,3.94081178,234.84,234.77,3.94081178]
[1757963223184,3.94081178,234.84,234.76,4.00081178]
[1757963223357,3.94081178,234.83,234.76,38.50081178]
[1757963223551,3.94081178,234.82,234.76,0.06]
[1757963223755,3.94081178,234.81,234.76,0.06]
[1757963224155,3.94081178,234.79,234.76,0.06]
[1757963224452,4.25930658,234.78,234.76,0.06]
[1757963224895,3.94081178,234.77,234.76,0.06]
[1757963226060,4.25930658,234.78,234.76,0.06]
[1757963226473,8.20011836,234.78,234.76,0.06]
[1757963226972,181.5,234.77,234.76,0.06]
[1757963227163,47.7,234.77,234.76,4.00081178]
[1757963227474,47.7,234.77,234.76,0.06]
[1757963230680,4.25935481,234.78,234.76,0.06]
[1757963231466,133.8,234.82,234.77,3.94081178]
[1757963231669,4.25892058,234.81,234.76,0.06]
[1757963232152,10.64437136,234.87,234.76,4.31963976]
[1757963232358,4.25622472,234.95,234.76,4.31963976]
[1757963232657,14.89678654,234.95,234.81,13.59559401]
[1757963232854,14.89678654,234.95,234.9,3.94081178]
[1757963233080,14.89678654,234.95,234.88,3.94081178]
[1757963233459,14.89678654,234.95,234.92,3.94081178]
[1757963233770,14.89678654,234.95,234.94,3.94081178]
[1757963234172,14.89678654,234.95,234.87,3.94081178]
[1757963234977,3.94081178,234.91,234.83,3.94081178]
[1757963235356,3.94081178,234.89,234.76,0.06]
[1757963235552,3.94081178,234.89,234.81,3.94081178]
[1757963236164,14.90122615,234.88,234.81,3.94081178]
[1757963236462,60.56,234.9,234.85,3.94081178]
[1757963236660,26.0,234.9,234.83,3.94081178]
[1757963238182,14.90059176,234.89,234.83,3.94081178]
[1757963238383,14.90059176,234.89,234.85,3.94081178]
[1757963238566,4.25731193,234.89,234.85,3.94081178]
[1757963238762,181.5,234.88,234.85,3.94081178]
[1757963239265,4.25708301,234.91,234.87,3.94081178]
[1757963239472,4.25708301,234.91,234.78,13.59559401]
[1757963239473,4.25708301,234.91,234.9,3.94081178]
[1757963239866,47.7,234.93,234.9,3.94081178]
[1757963240081,51.9567286,234.93,234.83,4.25839969]
[1757963240294,51.9567286,234.93,234.92,3.94081178]
[1757963240762,62.59819627,234.93,234.83,4.25839969]
[1757963241153,62.59819627,234.93,234.89,3.94081178]
[1757963241360,47.7,234.92,234.89,3.94081178]
[1757963241559,47.7,234.92,234.76,0.06]
[1757963241791,47.7,234.91,234.86,3.94081178]
[1757963241991,47.7,234.9,234.86,3.94081178]
[1757963242156,14.90059176,234.89,234.84,3.94081178]
[1757963242760,14.90059176,234.89,234.88,0.06]
[1757963243056,0.68705376,234.89,234.88,0.06]
[1757963243262,47.7,234.9,234.88,0.06]
[1757963244574,14.90059176,234.89,234.88,0.06]
[1757963246281,133.8,234.92,234.88,4.00081178]
[1757963246476,133.8,234.92,234.88,0.06]
[1757963246678,133.8,234.92,234.91,3.94081178]
[1757963246887,138.05676826,234.92,234.91,3.94081178]
[1757963247398,138.05676826,234.92,234.88,0.06]
[1757963247566,148.69868891,234.92,234.88,0.06]
[1757963247766,148.69868891,234.92,234.88,4.00081178]
[1757963247969,148.69868891,234.92,234.88,0.06]
[1757963248192,133.8,234.91,234.88,0.06]
[1757963248375,133.8,234.9,234.88,0.06]
[1757963249677,4.25731193,234.89,234.88,0.06]
[1757963250583,14.90059176,234.89,234.85,3.94081178]
[1757963250790,181.5,234.88,234.83,3.94081178]
[1757963251886,14.90186059,234.87,234.76,4.31966213]
[1757963252088,14.90186059,234.87,234.83,3.94081178]
[1757963252089,47.7,234.86,234.83,3.94081178]
[1757963252284,47.7,234.85,234.76,0.06]
[1757963252483,47.7,234.84,234.82,3.94081178]
[1757963252687,47.7,234.83,234.82,3.94081178]
[1757963252888,148.70126029,234.88,234.82,3.94081178]
[1757963254394,148.70126029,234.88,234.84,3.94081178]
[1757963255104,138.05752732,234.88,234.86,3.94081178]
[1757963257086,47.7,234.87,234.86,3.94081178]
[1757963258077,51.95767445,234.87,234.86,3.94081178]
[1757963258798,4.25767445,234.87,234.83,3.94081178]
[1757963259703,47.7,234.86,234.76,0.06]
[1757963259892,47.7,234.85,234.8,3.94081178]
[1757963260098,47.7,234.85,234.76,0.06]
[1757963260099,82.24,234.85,234.78,3.94081178]
[1757963261387,14.90376426,234.84,234.78,3.94081178]
[1757963263681,47.7,234.85,234.82,3.94081178]
[1757963263882,47.7,234.85,234.84,3.94081178]
[1757963265808,47.7,234.85,234.84,5.73482975]
[1757963268493,0.03,234.88,234.84,5.73482975]
[1757963268706,0.03,234.88,234.87,5.73482975]
[1757963269711,4.28749318,234.88,234.87,5.73482975]
[1757963270093,0.03,234.88,234.87,5.73482975]
[1757963270693,0.03,234.88,234.81,4.25875715]
[1757963270901,0.03,234.88,234.87,5.73482975]
[1757963273001,41.96517025,234.86,234.78,45.16826646]
[1757963273210,37.76517025,234.85,234.78,45.16826646]
[1757963274122,37.76517025,234.85,234.79,4.25912517]
[1757963274421,37.76517025,234.85,234.84,5.73482975]
[1757963274717,138.05783175,234.87,234.84,5.73482975]
[1757963274916,138.05783175,234.87,234.79,4.25912517]
[1757963274917,138.05783175,234.87,234.86,5.73482975]
[1757963276422,37.76517025,234.85,234.76,0.06]
[1757963276639,14.90201789,234.87,234.76,0.06]
[1757963276640,167.36517025,234.84,234.82,5.73482975]
[1757963276922,33.56517025,234.83,234.82,5.73482975]
[1757963277902,133.8,234.82,234.76,0.06]
[1757963278226,4.25839969,234.83,234.81,5.73482975]
[1757963278912,34.38,234.87,234.81,5.73482975]
[1757963279119,14.90249509,234.86,234.81,5.73482975]
[1757963280728,14.90249509,234.86,234.81,5.79482975]
[1757963281423,14.90249509,234.86,234.81,0.06]
[1757963281424,0.14216157,234.85,234.81,0.06]
[1757963281729,33.44517025,234.78,234.76,0.06]
[1757963281925,29.14517025,234.77,234.76,0.06]
[1757963282135,34.38,234.84,234.76,0.06]
[1757963282320,133.8,234.81,234.76,0.06]
[1757963282835,34.38,234.84,234.76,0.06]
[1757963282836,133.8,234.8,234.76,0.06]
[1757963283008,4.25930658,234.78,234.76,0.06]
[1757963284004,38.57930658,234.78,234.76,0.06]
[1757963284609,0.66,234.77,234.76,0.06]
[1757963284814,0.80216157,234.77,234.73,0.06]
[1757963285015,14.90884306,234.76,234.73,0.06]
[1757963285406,0.66,234.75,234.73,0.06]
[1757963286228,34.3,234.74,234.73,0.06]
[1757963286629,34.96,234.74,234.73,0.06]
[1757963286816,168.94216157,234.73,234.72,1e-08]
[1757963287022,4.40237543,234.73,234.72,1e-08]
[1757963287223,5.06237543,234.73,234.72,1e-08]
[1757963287921,168.94216157,234.72,234.71,1e-08]
[1757963288121,181.83775558,234.72,234.71,1e-08]
[1757963288331,182.49775558,234.72,234.71,1e-08]
[1757963288741,54.43258533,234.72,234.71,1e-08]
[1757963288945,74.43258533,234.72,234.71,1e-08]
[1757963289248,91.49298069,234.72,234.71,1e-08]
[1757963289467,91.49298069,234.72,234.64,1e-08]
[1757963289468,45.33042376,234.68,234.64,1e-08]
[1757963289631,26.14216157,234.65,234.64,1e-08]
[1757963289959,60.42216157,234.65,234.64,1e-08]
[1757963290148,61.08216157,234.65,234.64,1e-08]
[1757963290558,40.39775558,234.65,234.64,1e-08]
[1757963290751,74.65775558,234.65,234.64,1e-08]
[1757963291060,26.14216157,234.62,234.61,1e-08]
[1757963291267,64.6843728,234.62,234.61,1e-08]
[1757963291472,4.4043728,234.62,234.61,1e-08]
[1757963291637,30.26202173,234.64,234.61,5.73482976]
[1757963291948,4.26202173,234.64,234.63,5.73482975]
[1757963292158,4.2613031,234.67,234.63,5.73482975]
[1757963292453,4.2613031,234.67,234.66,5.73482975]
[1757963293247,4.26075841,234.7,234.66,5.73482975]
[1757963293463,14.91265444,234.7,234.69,5.73482975]
[1757963294956,49.91265444,234.7,234.69,5.73482975]
[1757963295160,14.91392533,234.68,234.62,5.73482975]